Cogmind - Beta 14 @@@ ROGUE MODE // 2025.03.25 @ 18:45:34 Player: SelfCookedBird Result: Destroyed by G-34 Mercenary with Small Laser Performance ------------- Evolutions (1) 500 Regions Visited (2) 400 Robots Destroyed (19) 95 Value Destroyed (399) 399 Prototype IDs (0) 0 Alien Tech Used (0) 0 Bonus (0) 0 TOTAL SCORE: 1394 Bonus ------- None Cogmind --------- Core Integrity 0/400 Matter 257/300 Energy 100/100 System Corruption 0% Temperature Cool (6) Movement Core (400) Ox7 Location -9/Materials Parts ------- > --- POWER (1) -------- (None) > --- PROPULSION (4) --- (None) > --- UTILITY (2) ------ Large Storage Unit > --- WEAPON (2) ------- Katana > --- INVENTORY (15) --- Light Ion Engine Small Storage Unit Medium Storage Unit Huge Storage Unit Visual Processing Unit Sensor Array Light Armor Plating Medium Laser Small Laser Light Assault Rifle Light Assault Rifle Heavy Assault Rifle Peak State ------------ > --- POWER ------------ Light Ion Engine > --- PROPULSION ------- Titanium Leg Titanium Leg Titanium Leg Titanium Leg > --- UTILITY ---------- Small Storage Unit ECM Suite > --- WEAPON ----------- Light Assault Rifle Katana > --- INVENTORY -------- Aluminum Leg Aluminum Leg Heat Sink Small Storage Unit Huge Storage Unit Sensor Array Power Shielding Medium Laser [Rating: 19] Favorites ----------- Power Light Ion Engine Engine Light Ion Engine Propulsion Titanium Leg Leg Titanium Leg Wheel Wheel Utility Small Storage Unit Device ECM Suite Storage Small Storage Unit Protection Power Shielding Weapon Light Assault Rifle Energy Gun EM Pulse Gun Ballistic Gun Light Assault Rifle Ballistic Cannon Light Cannon Slashing Weapon Katana Build | -11 -10 -9 ------- Run | Yrd Mat Mat Slots Evolved 2 | . . 2 Power . | . . . Propulsion 2 | . . 2 Utility . | . . . Weapon . | . . . Parts Attached 35 | 5 7 23 Power 4 | 1 . 3 Engine 4 | 1 . 3 Core . | . . . Reactor . | . . . Propulsion 15 | 2 3 10 Treads . | . . . Leg 12 | 2 . 10 Wheel 3 | . 3 . Hover . | . . . Flight . | . . . Utility 8 | . 3 5 Device 1 | . 1 . Storage 5 | . 1 4 Processor . | . . . Hackware . | . . . Protection 2 | . 1 1 Artifact . | . . . Weapon 8 | 2 1 5 Energy Gun 1 | 1 . . Energy Cannon . | . . . Ballistic Gun 4 | 1 . 3 Ballistic Cannon 1 | . . 1 Launcher . | . . . Special Weapon . | . . . Impact Weapon . | . . . Slashing Weapon 2 | . 1 1 Piercing Weapon . | . . . Special Melee Weapon . | . . . Unidentified Prototypes . | . . . Parts Lost 11 | . . 11 Power 2 | . . 2 Propulsion 6 | . . 6 Utility 1 | . . 1 Weapon 2 | . . 2 Highest Loss Streak 6 | . . 6 To Critical Strikes . | . . . Average Slot Usage (%) 93 | . 94 92 Engine 11 | . 14 10 Leg 27 | . 9 36 Wheel 7 | . 18 1 Device 4 | . 8 1 Storage 11 | . 11 11 Protection 6 | . 2 9 Energy Gun 3 | . 11 . Ballistic Gun 9 | . 14 7 Ballistic Cannon 2 | . . 3 Slashing Weapon 8 | . 2 11 Peak Build Rating 19 | 5 7 19 Average Rating 12 | 3 6 16 On Entrance 4 | . 5 7 Naked Turns . | . . . Heaviest Build 33 | 6 13 33 Greatest Support 68 | 20 26 68 Greatest Overweight (x) 9 | . . 9 Average Overweight (x) . | . . . Largest Inventory Capacity 25 | 5 8 25 Average Capacity 9 | 5 7 11 Most Carried 12 | 4 8 12 Average Carried 7 | 2 7 9 Final Capacity 15 | 5 8 15 Final Carried 12 | 4 8 12 Class Distribution -------------------- 100% | Mutant Dominant Class ---------------- Mutant | -10/Materials Mutant | -9/Materials Resources | -11 -10 -9 ----------- Run | Yrd Mat Mat Matter Collected 625 | 254 67 304 Remotely . | . . . Salvage Created 628 | 43 129 456 Parts 42 | 1 12 29 Haulers Intercepted . | . . . Recyclers Shooed . | . . . Parts Field Recycled . | . . . Retrieved Matter . | . . . Parts Self-Destructed . | . . . Prevented . | . . . Kills | -11 -10 -9 ------- Run | Yrd Mat Mat Combat Hostiles Destroyed 15 | 1 3 11 Melee 6 | . . 6 Guns 8 | 1 3 4 Cannons 1 | . . 1 Classes Destroyed 6 | 1 2 3 Tunneler 1 | . . 1 Recycler 2 | . 1 1 Watcher 1 | . . 1 Swarmer 8 | . 3 5 Grunt 4 | 1 . 3 Sentry 3 | . . 3 Best Kill Streak 4 | 1 4 4 Combat Bots Only 4 | 1 3 4 Max Kills in Single Turn 1 | 1 1 1 Gunslinging . | . . . Exploded . | . . . Melee 1 | . . 1 Uniques/NPCs Destroyed . | . . . Combat | -11 -10 -9 -------- Run | Yrd Mat Mat Hostile Shots Fired 275 | 5 11 259 Missed 101 | 1 5 95 Damage Taken 2066 | 44 141 1881 Core 456 | 11 37 408 Absorbed by Shields . | . . . Redirected to Shielding 52 | . . 52 Core Remaining (%) 87 | 95 80 . Volleys Fired 67 | 4 7 56 Largest 2 | 2 2 1 Hottest 60 | 60 60 35 Shots Fired 78 | 8 14 56 Gun 64 | 8 14 42 Cannon 14 | . . 14 Launcher . | . . . Special . | . . . Kinetic 67 | 4 7 56 Thermal . | . . . Explosive . | . . . Electromagnetic 11 | 4 7 . Robot Hit Streak 10 | 4 2 10 Robot Miss Streak 5 | 1 2 5 Penetration Max . | . . . Secondary Targets . | . . . Shots Hit Robots 59 | 5 6 48 Core Hits 27 | 2 5 20 Critical Kills . | . . . Critical Parts Destroyed . | . . . Critical Strikes 2 | . 1 1 Blast 1 | . . 1 Corrupt 1 | . 1 . Melee Attacks 14 | . . 14 Impact . | . . . Slashing 14 | . . 14 Piercing . | . . . Sneak Attacks 1 | . . 1 Combat Hostiles . | . . . Follow-up Attacks . | . . . Damage Inflicted 1134 | 97 58 979 Guns 542 | 56 58 428 Cannons 189 | . . 189 Explosions 41 | 41 . . Melee 362 | . . 362 Ramming . | . . . Kinetic 666 | 15 34 617 Thermal 41 | 41 . . Explosive . | . . . Electromagnetic 65 | 41 24 . Impact . | . . . Slashing 362 | . . 362 Piercing . | . . . Highest Corruption 2 | . 2 . Average Corruption 2 | . 2 . Corruption Purged . | . . . Corruption Blocked . | . . . Overload Shots . | . . . Overflow Damage 15 | . . 15 Projectiles . | . . . Explosions . | . . . Melee 15 | . . 15 Knockbacks . | . . . Impact . | . . . Kinetic . | . . . Secondary . | . . . Self-Inflicted Damage . | . . . Shots . | . . . Rammed . | . . . Targets Rammed . | . . . Kicked . | . . . Crushed . | . . . Highest Temperature 64 | 64 40 6 Average Temperature 21 | 29 25 2 Received Heat Transfer 480 | 24 . 456 Siege Activations . | . . . Robots Corrupted . | . . . Combat Hostiles . | . . . Parts Fried . | . . . Impact Corruptions . | . . . Robots Melted . | . . . Combat Hostiles . | . . . Parts Melted . | . . . Heat Transferred 50 | 50 . . Parts Sabotaged . | . . . Parts Stolen . | . . . Parts Stripped . | . . . Power Chain Reactions 1 | 1 . . Alert | -11 -10 -9 ------- Run | Yrd Mat Mat Peak Influence 264 | 20 103 264 Initial 42 | . 13 42 Average 87 | 3 49 122 Maximum Alert Level 1 | . . 1 Low Security (%) 94 | 100 100 89 Level 1 5 | . . 10 Level 2 . | . . . Level 3 . | . . . Level 4 . | . . . Level 5 . | . . . High Security . | . . . Max Security . | . . . Squads Dispatched 1 | . . 1 Investigation 1 | . . 1 Extermination . | . . . Reinforcement . | . . . Assault . | . . . Garrison . | . . . Intercept . | . . . Searches Triggered . | . . . Construction Impeded . | . . . Haulers Reinforced . | . . . Active Scanning Responses . | . . . Cargo Convoy Interrupts . | . . . Stealth | -11 -10 -9 --------- Run | Yrd Mat Mat Distress Signals . | . . . Communications Jammed . | . . . Distress Signals . | . . . Times Spotted 25 | 1 4 20 Peak Tracking Total 9 | 1 3 9 Tactical Retreats 1 | . . 1 Traps | -11 -10 -9 ------- Run | Yrd Mat Mat Traps Triggered 3 | . 2 1 Indirectly . | . . . Trap Hack Attempts . | . . . Triggered . | . . . Disarmed . | . . . Reprogrammed . | . . . Reused . | . . . Traps Extracted . | . . . Installed . | . . . Triggered . | . . . Machines | -11 -10 -9 ---------- Run | Yrd Mat Mat Machines Disabled . | . . . Max in Single Turn . | . . . Machines Repaired . | . . . Machines Dismantled . | . . . Machines Sabotaged . | . . . Overloaded Fab Kills . | . . . Hacking | -11 -10 -9 --------- Run | Yrd Mat Mat Machines Accessed 2 | . 2 . Terminals 2 | . 2 . Fabricators . | . . . Repair Stations . | . . . Recycling Units . | . . . Scanalyzers . | . . . Garrison Access . | . . . Total Hacks 4 | . 4 . Successful 2 | . 2 . Failed 2 | . 2 . Catastrophic . | . . . Database Lockouts . | . . . Manual 1 | . 1 . Terminals 4 | . 4 . Fabricators . | . . . Repair Stations . | . . . Recycling Units . | . . . Scanalyzers . | . . . Garrison Access . | . . . Terminal Hacks 2 | . 2 . Record 1 | . 1 . Locate Traps 1 | . 1 . Fabricator Hacks . | . . . Repair Station Hacks . | . . . Recycling Unit Hacks . | . . . Scanalyzer . | . . . Garrison Access Hacks . | . . . Unauthorized Hacks . | . . . Terminals . | . . . Fabricators . | . . . Repair Stations . | . . . Recycling Units . | . . . Scanalyzers . | . . . Garrison Access . | . . . Data Cores Recovered . | . . . Used . | . . . Hacking Detections 1 | . 1 . Full Trace Events . | . . . Feedback Events . | . . . Feedback Blocked . | . . . Robot Schematics Acquired . | . . . Robots Built . | . . . Authchips . | . . . Time . | . . . Total Robot Build Rating . | . . . Part Schematics Acquired . | . . . Parts Built . | . . . Authchips . | . . . Time . | . . . Total Part Build Rating . | . . . Parts Repaired . | . . . Time . | . . . Parts Recycled . | . . . Recycled Matter . | . . . Retrieved Matter . | . . . Retrieved Components . | . . . Parts Scanalyzed . | . . . Part Schematics Acquired . | . . . Parts Damaged . | . . . Bothacking | -11 -10 -9 ------------ Run | Yrd Mat Mat Used RIF Installer . | . . . Robots Hacked . | . . . Non-combat . | . . . Combat . | . . . Robot Hacks Applied . | . . . Relay Couplers Released . | . . . Fabnet Peak Effective % . | . . . Robots Rewired . | . . . Allies Hacked . | . . . Hacks Repelled . | . . . Allies | -11 -10 -9 -------- Run | Yrd Mat Mat Total Allies . | . . . Largest Group . | . . . Highest-Rated Group . | . . . Highest-Rated Ally . | . . . Total Orders . | . . . Ally Attacks . | . . . Total Damage . | . . . Kills . | . . . Allies Corrupted . | . . . Allies Melted . | . . . Intel | -11 -10 -9 ------- Run | Yrd Mat Mat Robot Analysis Total . | . . . Derelict Logs Recovered . | . . . Drone Launches . | . . . Drone Recoveries . | . . . Exploration | -11 -10 -9 ------------- Run | Yrd Mat Mat Turns Passed 1068 | 110 337 621 Spaces Moved 701 | 86 281 334 Core 24 | 21 . 3 Treads . | . . . Legs 457 | 65 89 303 Wheels 220 | . 192 28 Hover . | . . . Flight . | . . . Fastest Speed 50 | 50 80 90 Average Speed 112 | 102 95 128 Slowest Speed 500 | 120 120 500 Overloaded Moves . | . . . Propulsion Burnouts . | . . . Robots Hopped . | . . . Cave-ins Triggered . | . . . Exploration Rate (%) 16 | 6 32 11 Regions Visited 2 Branch Regions . Pre-discovered Areas . | . . . Known Exits Taken . | . . . Unknown Exits Taken 2 | 1 1 . Scrap Searched . | . . . Spaces Dug . | . . . Terrain Destroyed . | . . . Melee . | . . . Projectile . | . . . AOE . | . . . Terrain Rammed . | . . . Walls Destroyed . | . . . Machines Disabled . | . . . Actions | -11 -10 -9 --------- Run | Yrd Mat Mat Total 879 | 98 335 446 Wait 36 | . 30 6 Move 699 | 85 280 334 Hop . | . . . Pick Up 15 | 4 6 5 Fast Attach 14 | 5 3 6 Attach 3 | . . 3 Detach . | . . . Swap 18 | . 4 14 Drop 12 | . 4 8 Fire 67 | 4 7 56 Melee 14 | . . 14 Ram . | . . . Kick . | . . . Crush . | . . . Escape Stasis . | . . . Rewire 1 | . 1 . Trap . | . . . Miscellaneous . | . . . Route ------- -11/Scrapyard -10/Materials -9/Materials (discovered 1 exit: [*Sto]) History --------- Turn | Location | Event 2 | -11/Scrapyard | Met Revision 17 80 | -11/Scrapyard | Discovered new exit (range 8) 111 | -11/Scrapyard | Entered Materials 309 | -10/Materials | Build established: Mutant 375 | -10/Materials | Discovered new exit (range 10) 448 | -10/Materials | Entered another Materials area 448 | -9/Materials | Evolved 2 slots: Propulsion x2 822 | -9/Materials | Discovered new exit (range 15) 942 | -9/Materials | Core integrity fell below 50% 975 | -9/Materials | Lost 3 parts (1p2n) 1045 | -9/Materials | Core integrity fell below 20% 1069 | -9/Materials | Destroyed by G-34 Mercenary with Small Laser Last Messages --------------- 01041_ Titanium Leg destroyed. 01041_ K-01 Serf collects debris. 01042_ S-10 Pest destroyed. 01043_ K-01 Serf collects debris. You have activated your volley range indicator ('v' or the button under the VOLLEY window), useful for visualizing the range of your currently active weapons. That window and button are only visible while in targeting mode. See the manual for a detailed description of its advanced features. 01044_ K-01 Serf collects debris. 01045_ R-06 Scavenger collects Flight Unit. 01047_ S-10 Pest destroyed. 01048_ K-01 Serf collects debris. 01049_ Power Shielding destroyed. 01050_ Hvy. Assault Rifle destroyed. 01051_ K-01 Serf collects debris. 01064_ T-07 Excavator destroyed. 01064_ Imp. Ion Engine destroyed. 01064_ K-01 Serf collects debris. [Achievement: First Step to Greatness] Map ----- +----------------------------------------------------+ | ????????????????????????????????????????? | | ????????????????????????????????????????? | | ????????????????????????????????????????? | | ????????????????????????????????????????? | | ????????????????????????????????????????? | | ????????????????????????????????????????? | | ????????????????????????????????????????? | | ????????????????????????????????????????? | | ????????????????????????????????????????? | | ????????????????????????????????????????? | | ???????????????? ???????????????????????? | | ???????????????? ???????????????????????? | | ???????????????? ???????????????????????? | | ???????????????? #??????????????????????? | | ?????????????### ###????????????????????? | | ?????????????# ##???????????????????? | | ?????????????#% ????????????????????? | | ?????????????? %< ????????????????????? | | ?????????????? ?????????????????????? | | ?????????????? % ?????????????????????? | | ??????????????# #?????????????????????? | | ??????????????# [=#?????????????????????? | | ??????????????#**%#?????????????????????? | | ??????????????#g%Y#?????????????????????? | | ??????????????#s%k#?????????????????????? | | ??????????????# @k#?????????????????????? | | ??????????????# %#?????????????????????? | | ??????????????# |%###############???????? | | ??????????????# =%# """ #???????? | | ??????????????# *# """ """ "R" #???????? | | ??????????????# # """ """ " " #???????? | | ??????????????# # """ """ ##??????? | | ??????????????# w# #??????? | | ??????????????# # % ##??????? | | ?????######+### ##+########+###???????? | | ?????# ==+%= #???????? | | ?????# #!* """ #???????? | | ?????#/ #! """ #???????? | | ?????#// # #### """ #???????? | | ?????#!! # #??# #???????? | | ?????#!! #! !#??# """ #???????? | | ??######## ##!! ##??# """ #???????? | | ??# + #######???#! """ #???????? | | ??# # #?????????# #???????? | | ??# # ############+#+#####???????? | | ??# """ # #???????????? | | ??# """ # #???????????? | | ??# !""" # #???????????? | | ??######## ##+#########+#####?????????? | | ?????????# # # #?????????? | +----------------------------------------------------+ Best States ------------- Heat Dissipation 28 Energy Generation 12 Energy Capacity 265 Matter Stores 300 Matter Capacity 300 Sight Range 16 Terrain Scan Density 10 ECM Strength 1 Power Shielding 33 Evasion (%) 55 Item Schematics ----------------- None Robot Schematics ------------------ None Fabricated ------------ Nothing Alien Tech Used ----------------- None Achievements -------------- Crack Shot First Step to Greatness Storm Trooper Challenges ------------ None Game ------ Seed BehemothInertialSpecial Manual? 0 Play Time 00:31:19 Cumulative 0.5 hours Start 2025.03.25 @ 00:06:29 End 2025.03.25 @ 18:45:34 Sessions 6 Manual Loads 0 Difficulty Rogue Special Mode None Game No. 1 Rogue 1 Adventurer 0 Explorer 0 Win Type - Total 0 Types 0/0/0/0/0/0/0/0/0 Lore% 0 Gallery% 1 Achievement% 1 Wizard Run 0 Options --------- Layout 0 ASCII 1 Keyboard 1 Movement Vi Keybinds 0 Fullscreen 1 Font 14/SmallcapsGlow Map View 72x54 Zoom Use 0% Tactical HUD 1 Map Filters NONE Filters NONE Steam 0 RUN: 5b3a3a15-9871-4ba8-aa62-9282f02ead24